[Event "Live Chess"]
[Site "Chess.com"]
[Date "2023.09.16"]
[Round "-"]
[White "vitinho_lawliet"]
[Black "KauaShelby015"]
[Result "0-1"]
[WhiteElo "922"]
[BlackElo "1275"]
[TimeControl "900+5"]
[EndTime "7:45:12 PDT"]
[Termination "KauaShelby015 venceu por xeque-mate"]

1. f4 {[%clk 0:14:59.7]} 1... Nc6 {[%clk 0:14:56.6]} 2. Nf3 {[%clk 0:15:01.7]}
2... d5 {[%clk 0:14:47.2]} 3. g3 {[%clk 0:15:05.1]} 3... Nf6 {[%clk 0:14:50.3]}
4. Bg2 {[%clk 0:15:08.5]} 4... Bg4 {[%clk 0:14:50.7]} 5. d4 {[%clk 0:15:11.3]}
5... e6 {[%clk 0:14:48.5]} 6. Nc3 {[%clk 0:15:09.3]} 6... Bb4 {[%clk 0:14:50.4]}
7. Qd3 {[%clk 0:14:57.7]} 7... Ne4 {[%clk 0:14:47]} 8. Bd2 {[%clk 0:14:56.4]}
8... Nxd2 {[%clk 0:14:47.7]} 9. Qxd2 {[%clk 0:14:59.3]} 9... Qf6 {[%clk
0:14:43.7]} 10. e3 {[%clk 0:14:56.4]} 10... O-O-O {[%clk 0:14:43.5]} 11. O-O-O
{[%clk 0:14:52.4]} 11... Bxf3 {[%clk 0:14:38.1]} 12. Bxf3 {[%clk 0:14:53.1]}
12... g5 {[%clk 0:14:41.2]} 13. Rhf1 {[%clk 0:14:51.9]} 13... gxf4 {[%clk
0:14:42.4]} 14. exf4 {[%clk 0:14:47.6]} 14... Qe7 {[%clk 0:14:42.2]} 15. Kb1
{[%clk 0:14:41.4]} 15... f6 {[%clk 0:14:36.7]} 16. a3 {[%clk 0:14:43.2]} 16...
Bd6 {[%clk 0:14:38.5]} 17. Nb5 {[%clk 0:14:40.3]} 17... a6 {[%clk 0:14:39]} 18.
Nxd6+ {[%clk 0:14:42]} 18... Qxd6 {[%clk 0:14:42.7]} 19. h3 {[%clk 0:14:30.6]}
19... Rhe8 {[%clk 0:14:41.6]} 20. Rde1 {[%clk 0:14:29.9]} 20... e5 {[%clk
0:14:45]} 21. dxe5 {[%clk 0:14:31.9]} 21... fxe5 {[%clk 0:14:48.2]} 22. fxe5
{[%clk 0:14:33.4]} 22... Nxe5 {[%clk 0:14:51.7]} 23. Bxd5 {[%clk 0:14:34]} 23...
Qxd5 {[%clk 0:14:47.7]} 24. Qc3 {[%clk 0:14:18.1]} 24... Nc6 {[%clk 0:14:40.1]}
25. Rf2 {[%clk 0:13:48.1]} 25... Rxe1+ {[%clk 0:14:34.6]} 26. Qxe1 {[%clk
0:13:50]} 26... Qd1+ {[%clk 0:14:31.8]} 27. Qxd1 {[%clk 0:13:53.6]} 27... Rxd1+
{[%clk 0:14:36.3]} 28. Ka2 {[%clk 0:13:58.1]} 28... Nd4 {[%clk 0:14:28.8]} 29.
c3 {[%clk 0:13:56.7]} 29... Ne6 {[%clk 0:14:22.2]} 30. b4 {[%clk 0:13:55.7]}
30... Kd7 {[%clk 0:14:15.4]} 31. c4 {[%clk 0:13:58.6]} 31... c5 {[%clk
0:14:14.8]} 32. Rf7+ {[%clk 0:13:55.8]} 32... Kd6 {[%clk 0:14:17]} 33. bxc5+
{[%clk 0:13:56.9]} 33... Nxc5 {[%clk 0:14:20.1]} 34. Rxh7 {[%clk 0:13:59.5]}
34... Rd2+ {[%clk 0:14:21.6]} 35. Kb1 {[%clk 0:14:01.5]} 35... Rd3 {[%clk
0:14:19.9]} 36. Kc2 {[%clk 0:13:59.4]} 36... Rxg3 {[%clk 0:14:22.6]} 37. Rh6+
{[%clk 0:14:00.9]} 37... Kc7 {[%clk 0:14:23.5]} 38. h4 {[%clk 0:14:02.9]} 38...
Rxa3 {[%clk 0:14:24.8]} 39. h5 {[%clk 0:14:06.6]} 39... Rh3 {[%clk 0:14:21.4]}
40. Rh7+ {[%clk 0:14:10]} 40... Kb6 {[%clk 0:14:24.5]} 41. h6 {[%clk 0:14:14.3]}
41... Ne4 {[%clk 0:14:24.7]} 42. Rh8 {[%clk 0:14:17.5]} 42... Nf6 {[%clk
0:14:28.1]} 43. Kd2 {[%clk 0:14:14.1]} 43... Kc5 {[%clk 0:14:30]} 44. Ke2 {[%clk
0:14:18.2]} 44... Kxc4 {[%clk 0:14:33.8]} 45. Kf2 {[%clk 0:14:22.7]} 45... Kd5
{[%clk 0:14:34.9]} 46. Kg2 {[%clk 0:14:27.1]} 46... Rh5 {[%clk 0:14:38.1]} 47.
Kg3 {[%clk 0:14:31.1]} 47... Ke5 {[%clk 0:14:41.9]} 48. Kf3 {[%clk 0:14:32.3]}
48... Kf5 {[%clk 0:14:39.4]} 49. Kg3 {[%clk 0:14:28.6]} 49... Ne4+ {[%clk
0:14:41.5]} 50. Kf3 {[%clk 0:14:29.6]} 50... Ng5+ {[%clk 0:14:44.2]} 51. Kg3
{[%clk 0:14:31.8]} 51... Rh3+ {[%clk 0:14:42.3]} 52. Kg2 {[%clk 0:14:34.4]}
52... Rh5 {[%clk 0:14:39.4]} 53. Kg3 {[%clk 0:14:36.7]} 53... Kg6 {[%clk
0:14:43.1]} 54. Kg4 {[%clk 0:14:36.6]} 54... Rxh6 {[%clk 0:14:40.9]} 55. Rg8+
{[%clk 0:14:40.4]} 55... Kf7 {[%clk 0:14:40.4]} 56. Rxg5 {[%clk 0:14:43.5]}
56... Rg6 {[%clk 0:14:44.5]} 57. Rxg6 {[%clk 0:14:43.5]} 57... Kxg6 {[%clk
0:14:49]} 58. Kf4 {[%clk 0:14:48]} 58... Kf6 {[%clk 0:14:53.4]} 59. Ke4 {[%clk
0:14:52.6]} 59... Ke6 {[%clk 0:14:57.8]} 60. Kd4 {[%clk 0:14:57.3]} 60... Kd6
{[%clk 0:15:02.1]} 61. Kc4 {[%clk 0:15:02.2]} 61... Kc6 {[%clk 0:15:06.1]} 62.
Kb4 {[%clk 0:15:06.6]} 62... Kb6 {[%clk 0:15:09.9]} 63. Ka4 {[%clk 0:15:10.3]}
63... Kc5 {[%clk 0:15:13.6]} 64. Ka5 {[%clk 0:15:14]} 64... Kc6 {[%clk
0:15:15.3]} 65. Kb4 {[%clk 0:15:15.6]} 65... b6 {[%clk 0:15:19.2]} 66. Ka4
{[%clk 0:15:19.2]} 66... Kc5 {[%clk 0:15:22.9]} 67. Kb3 {[%clk 0:15:21.9]} 67...
a5 {[%clk 0:15:27.1]} 68. Ka4 {[%clk 0:15:25.6]} 68... Kc6 {[%clk 0:15:23.7]}
69. Ka3 {[%clk 0:15:28.5]} 69... Kb5 {[%clk 0:15:26.5]} 70. Kb3 {[%clk
0:15:32.4]} 70... a4+ {[%clk 0:15:28.1]} 71. Ka3 {[%clk 0:15:36.1]} 71... Ka5
{[%clk 0:15:29.1]} 72. Ka2 {[%clk 0:15:37.6]} 72... Kb4 {[%clk 0:15:32.9]} 73.
Kb2 {[%clk 0:15:41.5]} 73... b5 {[%clk 0:15:37.4]} 74. Ka2 {[%clk 0:15:45.1]}
74... Kc4 {[%clk 0:15:39.3]} 75. Kb2 {[%clk 0:15:49.3]} 75... b4 {[%clk
0:15:43.3]} 76. Ka2 {[%clk 0:15:53.3]} 76... Kc3 {[%clk 0:15:44.7]} 77. Ka1
{[%clk 0:15:57.2]} 77... b3 {[%clk 0:15:43.6]} 78. Kb1 {[%clk 0:16:00.6]} 78...
a3 {[%clk 0:15:46.4]} 79. Ka1 {[%clk 0:16:04.3]} 79... b2+ {[%clk 0:15:43]} 80.
Kb1 {[%clk 0:16:06.1]} 80... Kb4 {[%clk 0:15:39.5]} 81. Ka2 {[%clk 0:16:08.5]}
81... Kc4 {[%clk 0:15:35.9]} 82. Kb1 {[%clk 0:16:11.3]} 82... Kc3 {[%clk
0:15:37.4]} 83. Ka2 {[%clk 0:16:14.2]} 83... Kb4 {[%clk 0:15:01.8]} 84. Kb1
{[%clk 0:16:15.5]} 84... Ka4 {[%clk 0:15:05.6]} 85. Ka2 {[%clk 0:16:19.3]} 85...
Kb5 {[%clk 0:15:00.9]} 86. Kb1 {[%clk 0:16:21.9]} 86... Kc4 {[%clk 0:15:04]} 87.
Ka2 {[%clk 0:16:25.6]} 87... Kd3 {[%clk 0:15:08.4]} 88. Kb1 {[%clk 0:16:29.1]}
88... Kd2 {[%clk 0:15:10.8]} 89. Ka2 {[%clk 0:16:32.8]} 89... Kc1 {[%clk
0:15:14]} 90. Kxa3 {[%clk 0:16:34]} 90... b1=Q {[%clk 0:15:17.5]} 91. Ka4 {[%clk
0:16:37.7]} 91... Kc2 {[%clk 0:15:22]} 92. Ka5 {[%clk 0:16:41.6]} 92... Kc3
{[%clk 0:15:26.6]} 93. Ka4 {[%clk 0:16:45.6]} 93... Qb4# {[%clk 0:15:29.4]} 0-1

[Event "Live Chess"]
[Site "Chess.com"]
[Date "2023.09.16"]
[Round "-"]
[White "NavarroChess09"]
[Black "Mika635Isa"]
[Result "1-0"]
[WhiteElo "1328"]
[BlackElo "531"]
[TimeControl "900+5"]
[EndTime "7:45:49 PDT"]
[Termination "NavarroChess09 venceu por desistência"]

1. d4 {[%clk 0:15:01.9]} 1... d5 {[%clk 0:14:59.5]} 2. Nf3 {[%clk 0:15:01.4]}
2... Nc6 {[%clk 0:14:55.1]} 3. Nc3 {[%clk 0:15:02.3]} 3... Nf6 {[%clk
0:14:47.1]} 4. Bg5 {[%clk 0:15:03.5]} 4... g6 {[%clk 0:14:29.7]} 5. Bxf6 {[%clk
0:15:02.8]} 5... exf6 {[%clk 0:14:26.3]} 6. Qd2 {[%clk 0:15:07.7]} 6... Bg7
{[%clk 0:14:18.6]} 7. e3 {[%clk 0:15:08.1]} 7... O-O {[%clk 0:14:21.3]} 8. Bb5
{[%clk 0:15:08.2]} 8... Nb4 {[%clk 0:14:06.1]} 9. Na4 {[%clk 0:15:04.9]} 9... c6
{[%clk 0:13:57.8]} 10. Qxb4 {[%clk 0:15:00.4]} 10... cxb5 {[%clk 0:13:55.9]} 11.
Qxb5 {[%clk 0:15:03.2]} 11... Bd7 {[%clk 0:13:48]} 12. Qb3 {[%clk 0:14:58.2]}
12... Rb8 {[%clk 0:13:40]} 13. Nc5 {[%clk 0:14:56.1]} 13... f5 {[%clk
0:12:52.5]} 14. Qxd5 {[%clk 0:14:55.4]} 14... Ba4 {[%clk 0:12:44.5]} 15. Qxd8
{[%clk 0:14:55.3]} 15... Rfxd8 {[%clk 0:12:39.8]} 16. Nxa4 {[%clk 0:14:57.1]}
1-0

[Event "Live Chess"]
[Site "Chess.com"]
[Date "2023.09.16"]
[Round "-"]
[White "mary260210"]
[Black "Megruo988"]
[Result "0-1"]
[WhiteElo "902"]
[BlackElo "1710"]
[TimeControl "900+5"]
[EndTime "7:46:08 PDT"]
[Termination "Megruo988 venceu por xeque-mate"]

1. d4 {[%clk 0:15:03]} 1... Nf6 {[%clk 0:15:02.8]} 2. Nc3 {[%clk 0:15:05.6]}
2... g6 {[%clk 0:15:06.1]} 3. Nf3 {[%clk 0:15:09.9]} 3... Bg7 {[%clk 0:15:10.2]}
4. e4 {[%clk 0:15:13]} 4... O-O {[%clk 0:15:14.8]} 5. Bd3 {[%clk 0:15:14.4]}
5... d6 {[%clk 0:15:17.4]} 6. O-O {[%clk 0:15:18]} 6... Re8 {[%clk 0:15:13.9]}
7. e5 {[%clk 0:15:21.1]} 7... dxe5 {[%clk 0:15:17.2]} 8. dxe5 {[%clk 0:15:24.4]}
8... Nd5 {[%clk 0:15:17.8]} 9. Nxd5 {[%clk 0:15:19.7]} 9... Qxd5 {[%clk
0:15:21]} 10. Bf4 {[%clk 0:15:16.9]} 10... Bg4 {[%clk 0:15:24.3]} 11. c4 {[%clk
0:15:11.9]} 11... Qc6 {[%clk 0:15:07.3]} 12. h3 {[%clk 0:14:59.6]} 12... Bxf3
{[%clk 0:15:10]} 13. Qxf3 {[%clk 0:15:00.9]} 13... Qxf3 {[%clk 0:15:14.3]} 14.
gxf3 {[%clk 0:15:02.9]} 14... Nc6 {[%clk 0:15:18.8]} 15. Rad1 {[%clk 0:14:58.3]}
15... Nxe5 {[%clk 0:15:13.6]} 16. Bxe5 {[%clk 0:15:00.9]} 16... Bxe5 {[%clk
0:15:17.2]} 17. Be4 {[%clk 0:15:02.5]} 17... c6 {[%clk 0:15:15.6]} 18. Rd7
{[%clk 0:15:03.2]} 18... Rab8 {[%clk 0:15:02.3]} 19. b4 {[%clk 0:14:51.9]} 19...
e6 {[%clk 0:14:58.9]} 20. b5 {[%clk 0:14:53.7]} 20... cxb5 {[%clk 0:14:48]} 21.
cxb5 {[%clk 0:14:56.9]} 21... b6 {[%clk 0:14:49.5]} 22. Rxa7 {[%clk 0:14:56.4]}
22... Red8 {[%clk 0:14:35.2]} 23. Rc1 {[%clk 0:14:46.3]} 23... Rd2 {[%clk
0:14:13.1]} 24. Bc2 {[%clk 0:14:23.8]} 24... Bd4 {[%clk 0:14:08.4]} 25. Kf1
{[%clk 0:14:06.2]} 25... Rxf2+ {[%clk 0:13:59.3]} 26. Ke1 {[%clk 0:14:08]} 26...
Rc8 {[%clk 0:13:49.2]} 27. Rd1 {[%clk 0:14:10.9]} 27... Be3 {[%clk 0:13:33.9]}
28. Rd3 {[%clk 0:14:03]} 28... Rcxc2 {[%clk 0:12:32.4]} 29. Rxe3 {[%clk
0:14:00.1]} 29... Rh2 {[%clk 0:12:34.7]} 30. Kd1 {[%clk 0:13:34.4]} 30... Rxa2
{[%clk 0:12:27.4]} 31. Rxa2 {[%clk 0:13:35.2]} 31... Rxa2 {[%clk 0:12:29.7]} 32.
Rc3 {[%clk 0:13:35.4]} 32... Rb2 {[%clk 0:12:30.9]} 33. Rc8+ {[%clk 0:13:32.2]}
33... Kg7 {[%clk 0:12:34.4]} 34. Kc1 {[%clk 0:13:31]} 34... Rxb5 {[%clk
0:12:37.9]} 35. Rc6 {[%clk 0:13:28.4]} 35... Rb3 {[%clk 0:12:39.4]} 36. Kc2
{[%clk 0:13:32.2]} 36... Rxf3 {[%clk 0:12:42.5]} 37. Rxb6 {[%clk 0:13:35]} 37...
Rxh3 {[%clk 0:12:46.1]} 38. Kd2 {[%clk 0:13:36.7]} 38... Rf3 {[%clk 0:12:47.7]}
39. Ke2 {[%clk 0:13:40.8]} 39... Rf6 {[%clk 0:12:50.5]} 40. Ke3 {[%clk
0:13:43.9]} 40... h5 {[%clk 0:12:54.3]} 41. Ke4 {[%clk 0:13:48.3]} 41... h4
{[%clk 0:12:58.5]} 42. Rb3 {[%clk 0:13:51.9]} 42... Rf5 {[%clk 0:12:46.9]} 43.
Rc3 {[%clk 0:13:54.8]} 43... Kh6 {[%clk 0:12:49.8]} 44. Rh3 {[%clk 0:13:53.5]}
44... Kg5 {[%clk 0:12:51.1]} 45. Ke3 {[%clk 0:13:52.8]} 45... Kg4 {[%clk
0:12:49.1]} 46. Rh1 {[%clk 0:13:53.1]} 46... Kg3 {[%clk 0:12:48.1]} 47. Rg1+
{[%clk 0:13:55.6]} 47... Kh2 {[%clk 0:12:51.8]} 48. Rg4 {[%clk 0:13:55.2]} 48...
h3 {[%clk 0:12:53]} 49. Ke4 {[%clk 0:13:51.6]} 49... Rf2 {[%clk 0:12:43.2]} 50.
Ke3 {[%clk 0:13:51]} 50... Rg2 {[%clk 0:12:46.5]} 51. Rxg2+ {[%clk 0:13:51.9]}
51... Kxg2 {[%clk 0:12:51.1]} 52. Ke2 {[%clk 0:13:56]} 52... h2 {[%clk
0:12:55.3]} 53. Ke3 {[%clk 0:13:58.3]} 53... h1=Q {[%clk 0:13:00.2]} 54. Ke4
{[%clk 0:14:02.6]} 54... Qd1 {[%clk 0:13:00.3]} 55. Kf4 {[%clk 0:14:06.4]} 55...
Qd4+ {[%clk 0:12:51.6]} 56. Kg5 {[%clk 0:14:07.3]} 56... f6+ {[%clk 0:12:42.9]}
57. Kxg6 {[%clk 0:14:09.9]} 57... f5 {[%clk 0:12:42.6]} 58. Kf7 {[%clk
0:14:12.8]} 58... f4 {[%clk 0:12:46]} 59. Kxe6 {[%clk 0:14:17]} 59... f3 {[%clk
0:12:50.1]} 60. Kf5 {[%clk 0:14:19]} 60... f2 {[%clk 0:12:52.5]} 61. Ke6 {[%clk
0:14:23.6]} 61... f1=Q {[%clk 0:12:53.8]} 62. Ke7 {[%clk 0:14:26.6]} 62... Qe4+
{[%clk 0:12:57]} 63. Kd6 {[%clk 0:14:30]} 63... Qfd3+ {[%clk 0:13:01.1]} 64. Kc5
{[%clk 0:14:32]} 64... Qec4+ {[%clk 0:13:06]} 65. Kb6 {[%clk 0:14:35.1]} 65...
Qdb3+ {[%clk 0:13:10.9]} 66. Ka7 {[%clk 0:14:37.8]} 66... Qca4# {[%clk
0:13:15.8]} 0-1

[Event "Live Chess"]
[Site "Chess.com"]
[Date "2023.09.16"]
[Round "-"]
[White "Froidastics"]
[Black "xadrecarloso"]
[Result "1-0"]
[WhiteElo "1978"]
[BlackElo "940"]
[TimeControl "900+5"]
[EndTime "7:47:17 PDT"]
[Termination "Froidastics venceu por xeque-mate"]

1. e4 {[%clk 0:15:04.1]} 1... c5 {[%clk 0:15:01.2]} 2. Nf3 {[%clk 0:15:08.1]}
2... a6 {[%clk 0:15:04.7]} 3. d4 {[%clk 0:15:12.7]} 3... cxd4 {[%clk 0:15:07.7]}
4. Nxd4 {[%clk 0:15:17.6]} 4... b5 {[%clk 0:15:11.4]} 5. Nc3 {[%clk 0:15:19.1]}
5... Bb7 {[%clk 0:15:15.3]} 6. Be3 {[%clk 0:15:19.1]} 6... Nc6 {[%clk
0:15:18.6]} 7. f3 {[%clk 0:15:23.1]} 7... Nxd4 {[%clk 0:15:20.6]} 8. Bxd4 {[%clk
0:15:26.8]} 8... Nf6 {[%clk 0:15:22.7]} 9. e5 {[%clk 0:15:07]} 9... Nd5 {[%clk
0:14:52.6]} 10. Nxd5 {[%clk 0:15:03.2]} 10... Bxd5 {[%clk 0:14:55.9]} 11. Be3
{[%clk 0:14:58.7]} 11... f6 {[%clk 0:14:56]} 12. Qxd5 {[%clk 0:14:59.2]} 12...
e6 {[%clk 0:14:42.5]} 13. Qe4 {[%clk 0:14:48.3]} 13... f5 {[%clk 0:14:40.5]} 14.
Qd3 {[%clk 0:14:46.4]} 14... Qa5+ {[%clk 0:14:21.7]} 15. Qd2 {[%clk 0:14:46.9]}
15... Qxd2+ {[%clk 0:14:23.8]} 16. Bxd2 {[%clk 0:14:51.8]} 16... d6 {[%clk
0:14:24.4]} 17. exd6 {[%clk 0:14:52.5]} 17... Bxd6 {[%clk 0:14:27.7]} 18. O-O-O
{[%clk 0:14:55.9]} 18... O-O {[%clk 0:14:25.6]} 19. Bc3 {[%clk 0:14:46.7]} 19...
a5 {[%clk 0:14:20.8]} 20. Rxd6 {[%clk 0:14:49.4]} 20... b4 {[%clk 0:14:12.9]}
21. Be5 {[%clk 0:14:51.4]} 21... Rfd8 {[%clk 0:14:08]} 22. Bc4 {[%clk 0:14:54]}
22... Rxd6 {[%clk 0:14:08.7]} 23. Bxd6 {[%clk 0:14:57.7]} 23... Kf7 {[%clk
0:14:06.1]} 24. Re1 {[%clk 0:14:59.8]} 24... Re8 {[%clk 0:13:57.1]} 25. Bb3
{[%clk 0:14:48.7]} 25... g5 {[%clk 0:13:53.5]} 26. Bc7 {[%clk 0:14:48.9]} 26...
Re7 {[%clk 0:13:45.5]} 27. Bxa5 {[%clk 0:14:51.4]} 27... g4 {[%clk 0:13:44.8]}
28. fxg4 {[%clk 0:14:52.5]} 28... fxg4 {[%clk 0:13:47.6]} 29. Bxb4 {[%clk
0:14:56.5]} 29... Re8 {[%clk 0:13:46]} 30. Rf1+ {[%clk 0:14:56.8]} 30... Kg6
{[%clk 0:13:48]} 31. c4 {[%clk 0:14:57.5]} 31... Kg5 {[%clk 0:13:50.5]} 32. Bd2+
{[%clk 0:14:57.9]} 32... Kh4 {[%clk 0:13:52.3]} 33. c5 {[%clk 0:14:46.2]} 33...
h5 {[%clk 0:13:48.5]} 34. Bc3 {[%clk 0:14:46.7]} 34... g3 {[%clk 0:13:50.6]} 35.
Bf6+ {[%clk 0:14:44]} 35... Kg4 {[%clk 0:13:49.3]} 36. Bd1# {[%clk 0:14:48.3]}
1-0

[Event "Live Chess"]
[Site "Chess.com"]
[Date "2023.09.16"]
[Round "-"]
[White "Francisco_Ferrari"]
[Black "Giulliajapa007"]
[Result "1-0"]
[WhiteElo "2168"]
[BlackElo "991"]
[TimeControl "900+5"]
[EndTime "7:47:38 PDT"]
[Termination "Francisco_Ferrari venceu por xeque-mate"]

1. e4 {[%clk 0:15:03.2]} 1... e5 {[%clk 0:15:02.6]} 2. Nf3 {[%clk 0:15:06.7]}
2... Nc6 {[%clk 0:15:05.6]} 3. d4 {[%clk 0:15:05.8]} 3... exd4 {[%clk
0:14:47.8]} 4. Bc4 {[%clk 0:15:08.5]} 4... Bc5 {[%clk 0:14:41.9]} 5. O-O {[%clk
0:15:08.8]} 5... d6 {[%clk 0:14:35]} 6. Bg5 {[%clk 0:14:50.3]} 6... f6 {[%clk
0:14:26.3]} 7. Bf4 {[%clk 0:14:41.5]} 7... Bd7 {[%clk 0:14:05.6]} 8. c3 {[%clk
0:14:43.6]} 8... dxc3 {[%clk 0:14:03.9]} 9. Nxc3 {[%clk 0:14:47.8]} 9... Qe7
{[%clk 0:14:05.4]} 10. Nd5 {[%clk 0:14:51.2]} 10... Qd8 {[%clk 0:14:04.6]} 11.
Nh4 {[%clk 0:14:25.8]} 11... Nge7 {[%clk 0:13:54.9]} 12. Nxf6+ {[%clk
0:14:08.4]} 12... gxf6 {[%clk 0:13:49.8]} 13. Qh5+ {[%clk 0:14:10.8]} 13... Ng6
{[%clk 0:13:34.8]} 14. Nxg6 {[%clk 0:14:12.9]} 14... hxg6 {[%clk 0:13:37.2]} 15.
Qxh8+ {[%clk 0:14:15.8]} 15... Ke7 {[%clk 0:13:40.4]} 16. Qg7+ {[%clk 0:14:20]}
16... Ke8 {[%clk 0:13:43.6]} 17. Qf7# {[%clk 0:14:24.4]} 1-0

[Event "Live Chess"]
[Site "Chess.com"]
[Date "2023.09.16"]
[Round "-"]
[White "ravypintodiniz"]
[Black "icarohm"]
[Result "1-0"]
[WhiteElo "2063"]
[BlackElo "1875"]
[TimeControl "900+5"]
[EndTime "7:47:40 PDT"]
[Termination "ravypintodiniz venceu por desistência"]

1. e4 {[%clk 0:15:03.9]} 1... e6 {[%clk 0:15:01.9]} 2. d4 {[%clk 0:15:07.3]}
2... d5 {[%clk 0:15:05.5]} 3. exd5 {[%clk 0:15:12.2]} 3... exd5 {[%clk
0:15:08.8]} 4. Bd3 {[%clk 0:15:16.9]} 4... Bd6 {[%clk 0:15:11.2]} 5. Nf3 {[%clk
0:15:21.8]} 5... Nf6 {[%clk 0:15:12.3]} 6. Qe2+ {[%clk 0:15:25.7]} 6... Be6
{[%clk 0:15:14.1]} 7. Ng5 {[%clk 0:15:29]} 7... Qe7 {[%clk 0:15:09]} 8. Nxe6
{[%clk 0:15:32.3]} 8... fxe6 {[%clk 0:15:11.9]} 9. O-O {[%clk 0:15:34.6]} 9...
O-O {[%clk 0:15:15.3]} 10. c3 {[%clk 0:15:39]} 10... Nbd7 {[%clk 0:15:16.9]} 11.
Bg5 {[%clk 0:15:43.5]} 11... Rae8 {[%clk 0:15:10.5]} 12. Qc2 {[%clk 0:15:47.5]}
12... h6 {[%clk 0:15:12.5]} 13. Bh4 {[%clk 0:15:49.8]} 13... c5 {[%clk
0:15:12.4]} 14. Bg6 {[%clk 0:15:52.4]} 14... Rc8 {[%clk 0:15:11.2]} 15. dxc5
{[%clk 0:15:56.4]} 15... Bxc5 {[%clk 0:15:08.2]} 16. Nd2 {[%clk 0:15:57]} 16...
Ne5 {[%clk 0:14:56.8]} 17. Nf3 {[%clk 0:15:52.8]} 17... Nxg6 {[%clk 0:14:57.1]}
18. Qxg6 {[%clk 0:15:57.7]} 18... Qf7 {[%clk 0:14:59.1]} 19. Ne5 {[%clk
0:15:59]} 19... Qxg6 {[%clk 0:14:59]} 20. Nxg6 {[%clk 0:16:03.9]} 20... Rf7
{[%clk 0:15:02.9]} 21. Nf4 {[%clk 0:16:08.1]} 21... Re8 {[%clk 0:14:57.1]} 22.
Nd3 {[%clk 0:16:08.7]} 22... Bd6 {[%clk 0:14:59.7]} 23. Bg3 {[%clk 0:16:13.2]}
23... e5 {[%clk 0:15:02.2]} 24. f3 {[%clk 0:16:15.9]} 24... Bc7 {[%clk
0:14:58.3]} 25. Rfe1 {[%clk 0:16:17.3]} 25... Nd7 {[%clk 0:14:56.9]} 26. Re2
{[%clk 0:16:15.6]} 26... Bb6+ {[%clk 0:14:47.5]} 27. Kh1 {[%clk 0:16:17.6]}
27... Rfe7 {[%clk 0:14:49.8]} 28. Rae1 {[%clk 0:16:20.4]} 28... Bc7 {[%clk
0:14:40.6]} 29. Nb4 {[%clk 0:16:19.7]} 29... Nf6 {[%clk 0:14:38.3]} 30. Rd1
{[%clk 0:16:15.3]} 30... e4 {[%clk 0:14:36.9]} 31. Bxc7 {[%clk 0:16:13.9]} 31...
exf3 {[%clk 0:14:29.9]} 32. Rxe7 {[%clk 0:16:17.6]} 32... fxg2+ {[%clk
0:14:15.5]} 33. Kxg2 {[%clk 0:16:19.6]} 33... Rxe7 {[%clk 0:14:20.1]} 34. Bd8
{[%clk 0:16:11.3]} 34... Re2+ {[%clk 0:14:21.5]} 35. Kf3 {[%clk 0:16:13.7]}
35... Rxb2 {[%clk 0:14:24.6]} 36. Bxf6 {[%clk 0:16:18]} 36... gxf6 {[%clk
0:14:27.8]} 37. h4 {[%clk 0:16:20.5]} 37... a5 {[%clk 0:14:26.3]} 38. Nxd5
{[%clk 0:16:24.5]} 38... Rxa2 {[%clk 0:14:28.5]} 39. Nxf6+ {[%clk 0:16:28.7]}
39... Kg7 {[%clk 0:14:30.4]} 40. Ng4 {[%clk 0:16:27.4]} 40... Ra3 {[%clk
0:14:22.5]} 41. Rd7+ {[%clk 0:16:31.6]} 41... Kg6 {[%clk 0:14:24.3]} 42. Kf4
{[%clk 0:16:32.3]} 42... Rxc3 {[%clk 0:14:24.8]} 43. Ne5+ {[%clk 0:16:11.4]}
43... Kf6 {[%clk 0:14:14.2]} 44. Rxb7 {[%clk 0:16:10.9]} 44... a4 {[%clk
0:14:03.7]} 45. Rb6+ {[%clk 0:16:08.7]} 45... Ke7 {[%clk 0:14:00.8]} 46. Rxh6
{[%clk 0:16:12.3]} 46... a3 {[%clk 0:13:56.3]} 47. Ra6 {[%clk 0:16:15.9]} 47...
Rb3 {[%clk 0:13:59.5]} 48. h5 {[%clk 0:16:17.1]} 48... Rb4+ {[%clk 0:14:00]} 49.
Kf5 {[%clk 0:16:17.2]} 49... Kf8 {[%clk 0:13:56.6]} 50. h6 {[%clk 0:16:16.8]}
50... Rb7 {[%clk 0:13:55.4]} 51. Ra8+ {[%clk 0:16:15.3]} 1-0

[Event "Live Chess"]
[Site "Chess.com"]
[Date "2023.09.16"]
[Round "-"]
[White "maylso"]
[Black "Edson_Zarnelli"]
[Result "1-0"]
[WhiteElo "1433"]
[BlackElo "788"]
[TimeControl "900+5"]
[EndTime "7:48:05 PDT"]
[Termination "maylso venceu por desistência"]

1. e4 {[%clk 0:14:59.2]} 1... e5 {[%clk 0:15:04.4]} 2. Nf3 {[%clk 0:15:03.5]}
2... Nc6 {[%clk 0:15:08.5]} 3. Bc4 {[%clk 0:15:07]} 3... Bc5 {[%clk 0:15:12.6]}
4. c3 {[%clk 0:15:11.1]} 4... Nf6 {[%clk 0:15:15.7]} 5. d4 {[%clk 0:15:14.4]}
5... exd4 {[%clk 0:15:02.7]} 6. cxd4 {[%clk 0:15:18.1]} 6... Bb6 {[%clk
0:15:01.2]} 7. Nc3 {[%clk 0:15:16.5]} 7... Ba5 {[%clk 0:15:01.2]} 8. O-O {[%clk
0:15:19.5]} 8... Bxc3 {[%clk 0:15:04.5]} 9. bxc3 {[%clk 0:15:23]} 9... O-O
{[%clk 0:15:05.9]} 10. Bg5 {[%clk 0:15:25.6]} 10... Na5 {[%clk 0:15:03.9]} 11.
Bd3 {[%clk 0:15:24.4]} 11... h6 {[%clk 0:14:47.7]} 12. Bh4 {[%clk 0:15:22]}
12... g5 {[%clk 0:14:33.3]} 13. Nxg5 {[%clk 0:15:25.3]} 13... hxg5 {[%clk
0:14:37.2]} 14. Bxg5 {[%clk 0:15:30.2]} 14... Re8 {[%clk 0:14:32.4]} 15. e5
{[%clk 0:15:30.2]} 15... Kg7 {[%clk 0:14:19.9]} 16. Bxf6+ {[%clk 0:15:31.1]}
16... Qxf6 {[%clk 0:14:17.9]} 17. exf6+ {[%clk 0:15:36]} 17... Kxf6 {[%clk
0:14:22.3]} 18. Qf3+ {[%clk 0:15:40.4]} 18... Kg7 {[%clk 0:14:23.3]} 1-0

[Event "Live Chess"]
[Site "Chess.com"]
[Date "2023.09.16"]
[Round "-"]
[White "Mozart5501"]
[Black "KauaShelby015"]
[Result "0-1"]
[WhiteElo "1772"]
[BlackElo "1290"]
[TimeControl "900+5"]
[EndTime "7:48:08 PDT"]
[Termination "KauaShelby015 venceu por desistência"]

1. e4 {[%clk 0:15:03.8]} 1... e5 {[%clk 0:15:03.6]} 2. Nf3 {[%clk 0:15:08.3]}
2... Nc6 {[%clk 0:15:07.3]} 3. d4 {[%clk 0:15:12.7]} 3... exd4 {[%clk
0:15:09.7]} 4. Bc4 {[%clk 0:15:15.1]} 4... Bb4+ {[%clk 0:15:10.8]} 5. c3 {[%clk
0:15:17.3]} 5... dxc3 {[%clk 0:15:14.1]} 6. O-O {[%clk 0:15:21.1]} 6... cxb2
{[%clk 0:15:13.1]} 7. Bxb2 {[%clk 0:15:25.3]} 7... Nf6 {[%clk 0:15:11.4]} 8. e5
{[%clk 0:15:27.6]} 8... Ng4 {[%clk 0:15:11.4]} 9. a3 {[%clk 0:14:57.9]} 9... Bc5
{[%clk 0:14:32.1]} 10. Bxf7+ {[%clk 0:14:59.2]} 10... Kxf7 {[%clk 0:14:32]} 11.
Qd5+ {[%clk 0:15:03.8]} 11... Ke8 {[%clk 0:14:25.7]} 12. Qxc5 {[%clk 0:15:04.3]}
12... Qe7 {[%clk 0:14:21.6]} 13. Nc3 {[%clk 0:15:03]} 13... Qxc5 {[%clk
0:14:24.3]} 0-1